bitfinex-derivatives/quotes_SOLF0:USTF0_20250714
["timestamp","ask_amount","ask_price","bid_price","bid_amount"]
[1752454939452,9.8628,161.67,161.65,3.38]
[1752454939952,3.68,161.67,161.63,3.38]
[1752454940743,4.49334089,161.73,161.61,179.02]
[1752454940946,4.49334089,161.77,161.71,3.02817337]
[1752454941148,3.68,161.77,161.72,3.38]
[1752454941344,3.68,161.76,161.72,3.38]
[1752454941646,3.68,161.75,161.72,3.38]
[1752454941847,3.68,161.75,161.73,3.38]
[1752454942344,9.8598,161.75,161.73,3.38]
[1752454942550,3.68,161.74,161.73,3.38]
[1752454943057,4.49334089,161.77,161.69,3.02817337]
[1752454943249,6.70817337,161.76,161.7,3.38]
[1752454943450,3.68,161.74,161.71,3.38]
[1752454943750,3.68,161.72,161.71,3.38]
[1752454944056,6.1813,161.71,161.69,3.38]
[1752454944261,6.1813,161.71,161.7,3.38]
[1752454944650,3.02817337,161.74,161.69,3.38]
[1752454944846,3.68,161.69,161.67,3.38]
[1752454945052,3.68,161.72,161.65,3.02817337]
[1752454945554,6.1817,161.7,161.66,6.1827]
[1752454945753,3.68,161.69,161.67,3.38]
[1752454946155,9.8617,161.7,161.67,3.38]
[1752454946457,3.68,161.7,161.68,3.38]
[1752454946659,3.68,161.7,161.65,3.02817337]
[1752454946855,3.68,161.7,161.69,3.38]
[1752454947052,9.8615,161.7,161.69,3.38]
[1752454950859,3.32,161.73,161.69,6.40817337]
[1752454951063,5.19782121,161.78,161.6,182.22817337]
[1752454951064,3.32,161.75,161.72,3.42]
[1752454951955,3.32,161.75,161.72,6.1806]
[1752454952160,3.32,161.75,161.73,3.42]
[1752454952965,9.4998,161.75,161.73,3.42]
[1752454953163,3.32,161.74,161.72,3.42]
[1752454953665,3.32,161.73,161.7,3.42]
[1752454953865,3.32,161.72,161.71,3.42]
[1752454955563,9.5007,161.72,161.71,3.42]
[1752454955758,9.5007,161.72,161.69,6.1817]
[1752454955759,3.32,161.72,161.67,3.02722791]
[1752454956062,3.32,161.7,161.68,3.42]
[1752454956267,3.32,161.74,161.68,3.42]
[1752454956466,9.5018,161.69,161.68,3.42]
[1752454957167,9.5024,161.68,161.66,3.42]
[1752454957361,9.5024,161.68,161.67,3.42]
[1752454957760,3.32,161.66,161.65,3.42]
[1752454958156,3.32,161.7,161.66,3.42]
[1752454958454,3.32,161.7,161.67,3.42]
[1752454959062,6.1818,161.69,161.67,3.42]
[1752454959269,3.32,161.68,161.64,6.1836]
[1752454959457,3.32,161.67,161.65,3.42]
[1752454960057,3.32,161.67,161.64,6.1836]
[1752454960262,3.32,161.67,161.66,3.42]
[1752454961267,9.5026,161.67,161.66,3.42]
[1752454962171,6.1832,161.66,161.65,3.42]
[1752454962366,9.5032,161.66,161.65,3.42]
[1752454962758,9.5032,161.66,161.63,9.604]
[1752454962961,3.32,161.65,161.64,3.42]
[1752454963862,3.32,161.66,161.64,9.6038]
[1752454964062,3.32,161.66,161.65,3.42]
[1752454965459,3.32,161.66,161.62,3.42]
[1752454965671,3.32,161.65,161.62,3.42]
[1752454967269,9.5035,161.65,161.63,3.42]
[1752454967973,3.32,161.65,161.63,3.42]
[1752454968768,9.5034,161.65,161.64,3.42]
[1752454968970,3.02722791,161.67,161.61,3.42]
[1752454969177,3.32,161.66,161.62,3.42]
[1752454969376,3.02722791,161.67,161.62,3.42]
[1752454969377,3.32,161.63,161.62,3.42]
[1752454969569,3.32,161.63,161.61,3.42]
[1752454969768,3.32,161.62,161.58,3.02722791]
[1752454970177,3.32,161.62,161.61,6.1846]
[1752454970379,3.32,161.62,161.61,9.6046]
[1752454971471,3.32,161.62,161.61,3.42]
[1752454972069,3.32,161.62,161.61,9.6049]
[1752454972569,3.32,161.62,161.61,3.42]
[1752454974375,3.32,161.61,161.59,6.1855]
[1752454974575,3.32,161.61,161.6,3.42]
[1752454975072,3.32,161.61,161.6,9.6053]
[1752454975266,3.32,161.61,161.6,3.42]
[1752454976674,3.32,161.61,161.59,3.42]
[1752454976978,6.1848,161.62,161.6,3.42]
[1752454977477,3.32,161.64,161.58,3.42]
[1752454977873,6.1851,161.61,161.58,9.6059]
[1752454978080,3.32,161.6,161.58,9.6059]
[1752454978777,3.32,161.59,161.56,3.42]
[1752454979174,6.186,161.59,161.56,6.1866]
[1752454979378,3.32,161.58,161.54,3.42]
[1752454979778,6.1867,161.57,161.54,9.6075]
[1752454979979,3.32,161.56,161.54,3.42]
[1752454980183,3.32,161.56,161.52,3.42]
[1752454980382,3.32,161.56,161.49,6.57722791]
[1752454980681,3.36,161.55,161.5,3.55]
[1752454981177,3.36,161.55,161.49,3.02722791]
[1752454981178,6.1869,161.56,161.53,9.7378]
[1752454981379,3.02722791,161.57,161.5,3.55]
[1752454981577,3.36,161.56,161.51,6.1884]
[1752454981776,3.36,161.56,161.51,9.7384]
[1752454981976,3.36,161.56,161.51,3.55]
[1752454982176,3.02722791,161.53,161.48,3.55]
[1752454982381,3.36,161.52,161.48,3.55]
[1752454982579,3.36,161.51,161.49,3.55]
[1752454983284,3.36,161.51,161.49,9.7395]
[1752454983480,3.36,161.5,161.46,3.02722791]
[1752454983681,3.36,161.52,161.46,3.02722791]
[1752454983884,3.36,161.52,161.49,6.1893]
[1752454984087,3.36,161.52,161.5,3.55]
[1752454984381,3.36,161.51,161.5,3.55]
[1752454985084,3.36,161.51,161.5,9.7391]
[1752454985388,3.36,161.53,161.47,3.55]
[1752454985780,6.1882,161.53,161.49,6.1894]
[1752454985980,3.36,161.52,161.49,9.7394]
[1752454986386,3.36,161.52,161.5,3.55]
[1752454986687,3.36,161.51,161.5,9.739]
[1752454987587,3.36,161.6,161.51,3.55]
[1752454987888,3.36,161.6,161.5,3.03500761]
[1752454987889,6.1871,161.56,161.53,3.55]
[1752454988086,3.36,161.55,161.52,3.55]
[1752454988686,9.5472,161.55,161.52,9.7383]
[1752454988885,3.36,161.53,161.52,3.55]
[1752454989087,3.36,161.53,161.52,9.7383]
[1752454989982,3.36,161.55,161.54,3.55]
[1752454990789,6.1865,161.57,161.54,3.55]
[1752454990991,5.17914619,161.64,161.44,3.03500761]
[1752454990992,9.66267221,161.64,161.55,3.55]
[1752454991191,3.36,161.57,161.56,3.55]
[1752454991392,9.5464,161.57,161.54,3.55]
[1752454991688,3.36,161.56,161.55,3.55]
[1752454993789,3.36,161.56,161.53,3.55]
[1752454994393,3.36,161.54,161.53,3.55]
[1752454994593,3.36,161.54,161.53,9.738]
[1752454994893,6.1867,161.57,161.53,3.55]
[1752454995192,3.36,161.56,161.53,3.55]
[1752454995392,3.36,161.55,161.53,9.7377]
[1752454995691,3.36,161.55,161.54,3.55]
[1752454997290,3.03500761,161.59,161.52,3.03500761]
[1752454997588,3.36,161.58,161.55,3.55]
[1752454997892,3.36,161.6,161.55,3.55]
[1752454998491,3.36,161.59,161.55,3.55]
[1752454998998,3.36,161.59,161.56,6.1865]
[1752454999292,3.36,161.59,161.57,3.55]
[1752454999696,3.36,161.64,161.58,3.55]
[1752454999895,3.36,161.64,161.58,6.58500761]
[1752455000193,3.36,161.63,161.61,3.55]
[1752455000388,3.36,161.63,161.62,3.55]
[1752455001394,3.36,161.63,161.61,6.1849]
[1752455001395,3.36,161.64,161.63,3.55]
[1752455001592,9.5438,161.64,161.63,3.55]
[1752455002098,3.36,161.64,161.63,3.55]
[1752455002891,9.5438,161.64,161.63,3.55]
[1752455003089,3.36,161.63,161.59,3.55]
[1752455003497,3.36,161.62,161.59,3.55]
[1752455004098,3.36,161.62,161.6,3.55]
[1752455004296,3.36,161.65,161.6,3.55]
[1752455004898,3.36,161.63,161.6,3.55]
[1752455005195,3.36,161.63,161.59,3.55]
[1752455005386,9.5442,161.63,161.59,3.55]
[1752455005591,3.36,161.62,161.59,3.55]
[1752455005899,9.5442,161.63,161.59,3.55]
[1752455006198,9.5442,161.63,161.6,3.55]
[1752455006993,3.36,161.62,161.6,3.55]
[1752455007600,6.1842,161.63,161.6,3.55]
[1752455007797,9.5442,161.63,161.6,3.55]
[1752455007997,3.36,161.62,161.6,3.55]
[1752455009494,3.36,161.64,161.61,3.55]
[1752455010399,9.544,161.64,161.61,3.55]
[1752455010600,3.43,161.66,161.61,3.55]
[1752455011895,6.1841,161.64,161.61,3.55]
[1752455012098,3.43,161.63,161.61,3.55]
[1752455012693,6.1841,161.64,161.61,9.7349]
[1752455012900,4.51616561,161.68,161.62,6.44500761]
[1752455013197,3.43,161.66,161.63,9.5939]
[1752455013403,3.43,161.65,161.64,3.41]
[1752455014802,9.613,161.66,161.65,3.41]
[1752455016201,3.43,161.68,161.65,3.41]
[1752455016906,3.43,161.72,161.67,6.43752708]
[1752455017102,6.92161974,161.76,161.7,3.41]
[1752455017103,3.43,161.73,161.7,3.41]
[1752455017703,9.6108,161.72,161.69,3.02752708]
[1752455017908,3.43,161.72,161.71,3.41]
[1752455018109,9.6107,161.72,161.71,3.41]
[1752455020210,3.43,161.74,161.71,3.41]
[1752455020510,180.02,161.77,161.72,3.41]
[1752455020715,3.43,161.76,161.72,3.41]
[1752455021103,3.43,161.75,161.72,3.41]
[1752455022108,6.1802,161.74,161.72,3.41]
[1752455022908,180.02,161.77,161.72,3.41]
[1752455023112,183.45,161.77,161.74,3.41]
[1752455023410,3.43,161.76,161.74,3.41]
[1752455023606,3.43,161.78,161.74,3.41]
[1752455023812,3.43,161.81,161.74,3.41]
[1752455024210,3.43,161.8,161.74,3.41]
[1752455024606,6.1793,161.76,161.74,3.41]
[1752455024910,3.43,161.81,161.74,3.41]
[1752455025613,6.1791,161.77,161.74,3.41]
[1752455027815,9.6085,161.78,161.75,3.41]
[1752455028514,6.1785,161.78,161.75,9.5894]
[1752455028706,6.178,161.8,161.77,3.41]
[1752455029012,6.178,161.8,161.79,3.41]
[1752455029708,6.1773,161.81,161.79,3.41]
[1752455029913,3.43,161.82,161.79,3.41]
[1752455030213,6.1776,161.8,161.79,3.41]
[1752455032511,6.1773,161.81,161.79,3.41]
[1752455033417,6.1776,161.8,161.79,3.41]
[1752455034115,3.02476717,161.88,161.79,3.41]
[1752455034318,3.02476717,161.88,161.78,3.02476717]
[1752455034319,3.43,161.83,161.81,3.41]
[1752455034518,6.1771,161.82,161.81,3.41]
[1752455034815,3.43,161.83,161.81,3.41]
[1752455036212,6.1769,161.82,161.81,3.41]
[1752455036407,7.49699629,161.88,161.81,3.41]
[1752455036610,3.43,161.86,161.83,3.41]
[1752455037211,9.6055,161.86,161.83,3.41]
[1752455037411,3.43,161.86,161.83,3.41]
[1752455037614,3.43,161.89,161.83,3.41]
[1752455037814,6.1761,161.85,161.83,3.41]
[1752455038016,9.6061,161.85,161.83,3.41]
[1752455038614,6.1761,161.84,161.83,3.41]
[1752455039519,6.1759,161.85,161.83,3.41]
[1752455040018,6.1754,161.86,161.83,3.41]
[1752455040220,537.06476717,161.9,161.84,3.41]
[1752455040515,6.1752,161.87,161.85,3.37]
[1752455040820,3.46,161.88,161.85,3.37]
[1752455041011,3.46,161.9,161.85,3.37]
[1752455041522,3.02476717,161.88,161.82,3.37]
[1752455041817,3.02476717,161.88,161.53,17.09232189]
[1752455041818,3.46,161.85,161.81,3.37]
[1752455042024,3.46,161.85,161.82,3.37]
[1752455042721,3.46,161.82,161.79,3.37]
[1752455042916,3.02476717,161.84,161.79,3.37]
[1752455043121,3.46,161.8,161.79,3.37]
[1752455043427,3.46,161.81,161.8,3.37]
[1752455043916,9.6373,161.81,161.8,3.37]
[1752455045517,9.6383,161.79,161.78,3.37]
[1752455045821,3.02476717,161.84,161.77,3.37]
[1752455045822,3.46,161.83,161.77,3.37]
[1752455046819,9.6384,161.79,161.77,3.37]
[1752455049425,9.6384,161.79,161.78,3.37]
[1752455049920,6.1788,161.77,161.76,3.37]
[1752455050119,9.6388,161.77,161.76,3.37]
[1752455050327,3.46,161.81,161.76,3.37]
[1752455051022,3.46,161.8,161.76,3.37]
[1752455051320,3.02476717,161.83,161.76,3.37]
[1752455051526,3.46,161.79,161.76,3.37]
[1752455051917,3.46,161.79,161.76,6.39476717]
[1752455052117,6.1785,161.78,161.77,3.37]
[1752455052825,9.6381,161.79,161.77,3.37]
[1752455053034,3.46,161.81,161.77,3.37]
[1752455053326,3.46,161.81,161.79,3.37]
[1752455053525,9.6375,161.81,161.79,3.37]
[1752455054623,3.02476717,161.85,161.79,3.37]
[1752455054826,9.6367,161.83,161.79,3.37]
[1752455055221,3.46,161.82,161.8,3.37]
[1752455055524,6.1767,161.83,161.8,6.39476717]
[1752455055725,6.1767,161.83,161.81,3.37]
[1752455055916,9.6367,161.83,161.81,3.37]
[1752455056317,9.6367,161.83,161.82,3.37]
[1752455062823,14.1529218,161.83,161.82,3.37]
[1752455073746,3.63,161.82,161.77,3.02476717]
[1752455073943,4.53403618,161.81,161.77,3.02476717]
[1752455074140,6.1787,161.78,161.75,3.02476717]
[1752455074344,3.63,161.77,161.7,534.04]
[1752455074546,3.63,161.77,161.74,3.02476717]
[1752455075032,3.63,161.77,161.75,9.8396]
[1752455075235,3.63,161.77,161.76,3.66]
[1752455076037,3.63,161.78,161.76,3.66]
[1752455076238,8.16340837,161.81,161.77,3.66]
[1752455076540,3.63,161.81,161.79,3.66]
[1752455077144,9.8074,161.81,161.79,3.66]
[1752455077341,6.1774,161.81,161.79,3.66]
[1752455078043,3.63,161.82,161.8,3.66]
[1752455078239,3.63,161.83,161.8,3.02476717]
[1752455078446,3.63,161.83,161.81,3.66]
[1752455078640,9.8063,161.84,161.82,3.66]
[1752455078840,4.53217123,161.83,161.82,3.66]
[1752455079246,9.8058,161.85,161.82,3.66]
[1752455079451,4.5320514,161.84,161.82,3.66]
[1752455079746,9.8058,161.85,161.82,3.66]
[1752455079947,4.53199626,161.84,161.82,3.66]
[1752455080252,9.8051,161.87,161.83,3.66]
[1752455080444,4.53168342,161.86,161.83,3.66]
[1752455080645,4.53168342,161.85,161.83,3.66]
[1752455080840,4.53168342,161.84,161.83,9.8365]
[1752455081046,9.8051,161.87,161.77,178.98]
[1752455081047,9.8051,161.87,161.85,3.66]
[1752455081444,4.53036887,161.86,161.85,3.66]
[1752455081743,9.8046,161.88,161.85,3.66]
[1752455081949,4.52996621,161.87,161.86,3.66]
[1752455082152,4.52996621,161.88,161.86,3.66]
[1752455082347,3.63,161.86,161.84,3.02476717]
[1752455082646,3.63,161.86,161.84,9.20066717]
[1752455082855,3.63,161.86,161.85,3.66]
[1752455084852,9.8053,161.87,161.85,3.66]
[1752455086046,3.63,161.87,161.85,3.66]
[1752455087449,3.63,161.89,161.85,3.66]
[1752455087654,3.63,161.89,161.86,3.02476717]
[1752455087858,9.8045,161.89,161.87,3.66]
[1752455088055,3.63,161.88,161.86,3.66]
[1752455088651,3.63,161.88,161.87,3.66]
[1752455089558,3.63,161.89,161.87,3.66]
[1752455089750,8.13673948,161.89,161.87,3.66]
[1752455089956,3.63,161.89,161.87,3.66]
[1752455090153,3.63,161.88,161.87,3.66]
[1752455092160,6.1739,161.9,161.87,3.66]
[1752455092356,3.63,161.89,161.87,3.66]
[1752455093565,9.8043,161.89,161.87,3.66]
[1752455093757,3.63,161.88,161.85,9.20036717]
[1752455094162,3.63,161.88,161.86,3.66]
[1752455094363,3.63,161.88,161.87,3.66]
[1752455095762,6.174,161.9,161.87,3.66]
[1752455095962,3.63,161.88,161.87,9.835]
[1752455096165,3.63,161.89,161.88,3.66]
[1752455097763,3.63,161.91,161.88,3.66]
[1752455098359,4.50457097,161.92,161.88,3.66]
[1752455098565,3.63,161.91,161.89,6.174]
[1752455098865,3.63,161.91,161.9,3.66]
[1752455099962,3.63,161.91,161.88,3.66]
[1752455100561,9.7142,161.89,161.86,9.7951]
[1752455100766,9.7142,161.89,161.87,3.62]
[1752455100767,3.54,161.88,161.87,3.62]
[1752455102262,6.56476717,161.94,161.88,3.62]
[1752455102462,3.54,161.92,161.88,3.62]
[1752455102662,4.50457097,161.92,161.88,3.62]
[1752455102867,8.04457097,161.95,161.91,6.64009993]
[1752455103066,8.04457097,161.94,161.92,3.62]
[1752455103370,9.7122,161.95,161.92,3.62]
[1752455103963,9.7122,161.95,161.93,3.62]
[1752455104264,6.1717,161.96,161.93,3.62]
[1752455104463,9.7117,161.96,161.93,3.62]
[1752455104662,3.54,161.98,161.94,3.62]
[1752455104962,4.50457097,161.98,161.95,3.02009993]
[1752455105169,3.54,161.99,161.96,3.62]
[1752455105468,533.54,162.01,161.85,12.3512]
[1752455105469,6.1699,162.01,161.97,3.02009993]
[1752455105671,3.54,162.0,161.98,3.62]
[1752455105864,6.1696,162.02,161.98,3.62]
[1752455106167,3.54,162.01,161.98,9.7908]
[1752455106360,3.54,162.01,161.99,3.62]
[1752455106561,9.7097,162.01,161.99,3.62]
[1752455106856,3.54,162.02,161.99,3.62]
[1752455107061,9.7091,162.03,162.0,3.62]
[1752455107262,3.54,162.06,162.0,3.62]
[1752455107459,5.16034783,162.08,162.02,3.62]
[1752455107460,3.54,162.05,162.02,3.62]
[1752455107666,3.54,162.04,162.02,3.62]
[1752455107866,9.7086,162.04,162.02,3.62]
[1752455108267,3.54,162.06,162.03,3.02009993]
[1752455108569,9.708,162.06,162.05,3.62]
[1752455109165,6.1685,162.04,162.03,6.64009993]
[1752455109469,3.54,162.05,162.04,3.62]
[1752455110669,9.7081,162.05,162.04,3.62]
[1752455111969,6.1681,162.05,162.04,3.62]
[1752455112267,178.96,162.09,162.04,3.62]
[1752455112463,3.54,162.08,162.05,3.01437567]
[1752455112664,6.55437567,162.16,162.08,3.62]
[1752455112860,3.54,162.14,162.08,3.62]
[1752455113173,3.54,162.11,162.06,3.62]
[1752455113463,3.54,162.11,162.05,3.01437567]
[1752455113669,3.54,162.11,162.08,3.62]
[1752455114866,6.1669,162.09,162.08,3.62]
[1752455115067,9.7069,162.09,162.08,3.62]
[1752455115470,6.1669,162.09,162.08,3.62]
[1752455116071,9.7069,162.09,162.08,3.62]
[1752455116970,3.54,162.09,162.08,3.62]
[1752455117172,3.54,162.12,162.09,3.62]
[1752455117674,6.1661,162.11,162.09,3.62]
[1752455119170,6.1662,162.1,162.09,3.62]
[1752455120572,6.1662,162.1,162.08,3.01437567]
[1752455120573,9.706,162.11,162.1,3.62]
[1752455121470,3.54,162.11,162.1,3.62]
[1752455121676,3.54,162.16,162.11,3.62]
[1752455121876,3.54,162.15,162.13,3.62]
[1752455122576,6.1647,162.14,162.13,3.62]
[1752455122776,3.54,162.13,162.11,3.62]
[1752455123272,3.54,162.13,162.1,3.01437567]
[1752455123472,3.54,162.13,162.11,3.62]
[1752455123673,6.1655,162.12,162.11,3.62]
[1752455124574,6.1651,162.13,162.11,3.62]
[1752455124879,3.54,162.15,162.11,3.62]
[1752455125577,3.54,162.16,162.13,3.62]
[1752455125767,3.54,162.16,162.1,3.62]
[1752455125973,6.1657,162.12,162.1,3.62]
[1752455126273,3.54,162.12,162.11,3.62]
[1752455126469,6.165,162.14,162.11,3.62]
[1752455126881,6.165,162.14,162.12,3.01437567]
[1752455127083,6.165,162.14,162.13,3.62]
[1752455129177,3.54,162.18,162.13,3.62]
[1752455129682,6.1647,162.14,162.13,3.62]
[1752455132486,6.1645,162.15,162.13,3.62]
[1752455133686,3.54,162.16,162.13,3.62]
[1752455133687,6.1647,162.14,162.13,3.62]
[1752455133984,3.54,162.16,162.13,3.62]
[1752455134686,3.32,162.15,162.13,3.62]
[1752455135084,6.1647,162.14,162.13,3.62]
[1752455135589,9.4847,162.14,162.13,3.62]
[1752455135787,9.4846,162.15,162.13,3.62]
[1752455135986,3.32,162.15,162.13,3.62]
[1752455136589,9.4843,162.15,162.14,3.53]
[1752455137285,3.32,162.15,162.14,3.53]
[1752455137480,3.32,162.2,162.14,6.54437567]
[1752455137891,3.32,162.2,162.16,3.53]
[1752455138781,3.32,162.2,162.17,3.53]
[1752455138983,3.32,162.2,162.14,3.01437567]
[1752455139186,3.32,162.2,162.15,3.53]
[1752455139485,6.1634,162.18,162.15,9.6941]
[1752455139687,9.4834,162.18,162.16,6.54437567]
[1752455140081,9.4834,162.18,162.16,3.01437567]
[1752455140285,9.4834,162.18,162.17,3.53]
[1752455140686,6.1629,162.19,162.17,3.53]
[1752455140889,3.32,162.22,162.19,3.53]
[1752455142090,3.32,162.22,162.16,3.01437567]
[1752455142285,6.33437567,162.21,162.15,3.53]
[1752455142787,6.33437567,162.21,162.13,3.53]
[1752455142788,3.32,162.2,162.13,3.53]
[1752455143184,3.01437567,162.19,162.13,3.53]
[1752455143390,3.32,162.18,162.11,3.01437567]
[1752455143587,3.32,162.18,162.05,178.92]
[1752455143588,3.32,162.16,162.09,3.01437567]
[1752455143789,3.32,162.14,162.07,3.01437567]
[1752455144095,3.32,162.1,162.09,3.53]
[1752455144590,9.4862,162.1,162.09,3.53]
[1752455146491,4.44442314,162.16,162.08,3.53]
[1752455146492,3.32,162.09,162.08,3.53]
[1752455146994,3.32,162.09,162.07,3.53]
[1752455147292,3.32,162.08,162.07,3.53]
[1752455148090,9.4873,162.08,162.07,3.53]
[1752455148492,3.32,162.08,162.05,3.53]
[1752455148694,3.32,162.03,162.0,182.01437567]
[1752455148896,3.32,162.03,162.0,3.01437567]
[1752455149090,6.1696,162.01,161.98,3.01437567]
[1752455149296,6.1696,162.01,161.99,3.53]
[1752455149693,6.1693,162.02,162.0,3.53]
[1752455149896,9.4893,162.02,162.01,3.53]
[1752455150789,13.9512663,162.02,162.01,3.53]
[1752455150988,9.4893,162.02,162.01,3.53]
[1752455151187,9.4893,162.02,161.93,179.18]
[1752455151188,4.4619663,162.02,161.99,3.53]
[1752455151496,3.32,162.0,161.97,3.53]
[1752455151698,3.32,161.98,161.97,3.53]
[1752455152600,9.4908,161.98,161.97,3.53]
[1752455153001,3.32,161.98,161.96,3.53]
[1752455153200,3.32,161.96,161.95,3.53]
[1752455153797,3.01437567,162.01,161.95,3.53]
[1752455153798,4.46517579,161.99,161.95,3.53]
[1752455154006,3.32,161.99,161.95,3.53]
[1752455154404,6.1709,161.98,161.95,3.53]
[1752455154605,3.32,161.96,161.95,3.53]
[1752455154806,3.32,161.95,161.93,3.53]
[1752455155103,3.32,161.96,161.93,3.53]
[1752455155503,3.32,161.95,161.93,3.53]
[1752455155806,3.32,161.95,161.94,3.53]
[1752455156106,3.01437567,161.99,161.92,9.18717567]
[1752455156107,3.01437567,161.99,161.95,3.53]
[1752455156307,9.4915,161.96,161.95,3.53]
[1752455156606,3.32,161.96,161.95,3.53]
[1752455157906,9.4916,161.96,161.93,6.1726]
[1752455158108,3.32,161.94,161.93,3.53]
[1752455158805,3.32,161.98,161.93,3.53]
[1752455159010,3.32,161.98,161.94,3.53]
[1752455159211,3.32,161.95,161.94,3.53]
[1752455159905,3.32,161.94,161.93,3.53]
[1752455160213,3.32,161.94,161.93,9.7027]
[1752455160409,3.45,162.0,161.94,3.36]
[1752455160614,3.45,162.02,161.96,3.36]
[1752455161004,3.45,162.02,161.95,3.01814731]
[1752455161005,3.45,162.02,161.97,3.36]
[1752455161713,3.01709244,162.03,161.97,3.36]
[1752455161714,3.45,161.99,161.97,3.36]
[1752455162013,3.45,161.98,161.97,3.36]
[1752455163416,3.45,161.98,161.93,3.36]
[1752455163815,3.45,161.98,161.92,3.01709244]
[1752455164016,3.45,161.98,161.94,3.36]
[1752455164410,3.01709244,161.97,161.92,3.36]
[1752455164609,3.45,161.96,161.92,3.36]
[1752455165219,6.172,161.95,161.92,3.36]
[1752455165421,3.45,161.94,161.92,3.36]
[1752455165718,3.45,161.93,161.92,3.36]
[1752455166322,3.01709244,161.97,161.92,9.5331]
[1752455166323,6.1717,161.96,161.92,9.5331]
[1752455166521,3.45,161.94,161.93,3.36]
[1752455166720,3.45,161.99,161.93,6.37893994]
[1752455167026,3.45,162.0,161.99,3.36]
[1752455168522,3.45,161.99,161.98,3.36]
[1752455169120,6.171,161.98,161.96,3.36]
[1752455169311,3.45,161.97,161.96,3.36]
[1752455169715,3.45,161.96,161.94,3.36]
[1752455169916,3.45,161.96,161.95,3.36]
[1752455170520,3.45,161.97,161.94,6.1721]
[1752455170721,3.45,161.97,161.96,3.36]
[1752455170916,6.1709,161.98,161.94,6.1721]
[1752455171219,3.45,162.0,161.94,3.36]
[1752455171425,3.45,161.98,161.92,6.37893994]
[1752455171626,3.45,161.98,161.92,3.01893994]
[1752455171824,3.45,161.98,161.94,3.36]
[1752455172023,6.1718,161.96,161.94,3.36]
[1752455172223,3.45,161.95,161.94,3.36]
[1752455173726,9.6219,161.95,161.92,6.1729]
[1752455173926,3.45,161.94,161.93,3.36]
[1752455174826,3.45,161.94,161.93,9.5327]
[1752455175028,3.45,161.98,161.91,3.01893994]
[1752455175228,3.45,161.98,161.94,3.36]
[1752455175629,3.45,162.01,161.96,3.36]